[Event "Titled Tuesday Blitz July 4 Early 2023"]
[White "Shuvalov, Evgenij"]
[Black "Freile Martin, Javier"]
[WhiteFideId "4187237"]
[BlackFideId "3600165"]
[WhiteElo "2522"]
[BlackElo "2307"]
[Result "1-0"]
[Round "2"]
[TimeControl "180+2"]
[Date "2023.07.04"]
[WhiteClock "0:00:02"]
[BlackClock "0:00:00"]
[Board "179"]

1. d4 {[%clk 0:03:00]}  Nf6 {[%clk 0:02:59]} 2. c4 {[%clk 0:02:59]}  g6 {[%clk 0:02:59]} 3. Nc3 {[%clk 0:02:58]}  Bg7 {[%clk 0:02:59]} 4. e4 {[%clk 0:02:58]}  d6 {[%clk 0:02:59]} 5. Nf3 {[%clk 0:02:58]}  O-O {[%clk 0:02:59]} 6. Be2 {[%clk 0:02:59]}  Na6 {[%clk 0:02:59]} 7. O-O {[%clk 0:02:58]}  e5 {[%clk 0:02:59]} 8. d5 {[%clk 0:02:40]}  Nc5 {[%clk 0:02:57]} 9. Nd2 {[%clk 0:02:36]}  a5 {[%clk 0:02:56]} 10. f3 {[%clk 0:02:29]}  c6 {[%clk 0:02:53]} 11. Nb3 {[%clk 0:02:29]}  Nfd7 {[%clk 0:02:20]} 12. Be3 {[%clk 0:02:20]}  Nxb3 {[%clk 0:02:11]} 13. axb3 {[%clk 0:02:16]}  c5 {[%clk 0:02:08]} 14. Nb5 {[%clk 0:02:14]}  Nb6 {[%clk 0:02:06]} 15. Qd2 {[%clk 0:01:48]}  a4 {[%clk 0:02:00]} 16. b4 {[%clk 0:01:45]}  Nd7 {[%clk 0:01:03]} 17. Nxd6 {[%clk 0:01:42]}  cxb4 {[%clk 0:01:01]} 18. Qxb4 {[%clk 0:01:40]}  f5 {[%clk 0:00:54]} 19. Nxc8 {[%clk 0:01:29]}  Qxc8 {[%clk 0:00:51]} 20. c5 {[%clk 0:01:24]}  Rf6 {[%clk 0:00:40]} 21. Rfc1 {[%clk 0:01:16]}  Bf8 {[%clk 0:00:39]} 22. Bb5 {[%clk 0:01:00]}  b6 {[%clk 0:00:30]} 23. Bxd7 {[%clk 0:00:17]}  Qxd7 {[%clk 0:00:29]} 24. d6 {[%clk 0:00:16]}  bxc5 {[%clk 0:00:28]} 25. Bxc5 {[%clk 0:00:17]}  Bxd6 {[%clk 0:00:27]} 26. Rd1 {[%clk 0:00:14]}  Bxc5+ {[%clk 0:00:26]} 27. Qxc5 {[%clk 0:00:15]}  Qa7 {[%clk 0:00:19]} 28. Rd8+ {[%clk 0:00:13]}  Kg7 {[%clk 0:00:19]} 29. Qxa7+ {[%clk 0:00:10]}  Rxa7 {[%clk 0:00:18]} 30. Rad1 {[%clk 0:00:08]}  Rb6 {[%clk 0:00:17]} 31. R1d7+ {[%clk 0:00:06]}  Rxd7 {[%clk 0:00:17]} 32. Rxd7+ {[%clk 0:00:07]}  Kf6 {[%clk 0:00:17]} 33. Ra7 {[%clk 0:00:07]}  Rxb2 {[%clk 0:00:16]} 34. Rxa4 {[%clk 0:00:07]}  h5 {[%clk 0:00:14]} 35. h4 {[%clk 0:00:07]}  Rd2 {[%clk 0:00:09]} 36. Kh2 {[%clk 0:00:06]}  fxe4 {[%clk 0:00:08]} 37. Rxe4 {[%clk 0:00:06]}  Kf5 {[%clk 0:00:07]} 38. Kg3 {[%clk 0:00:05]}  Rd4 {[%clk 0:00:05]} 39. Re2 {[%clk 0:00:03]}  Rd3 {[%clk 0:00:00]} 40. Kh3 {[%clk 0:00:02]} 1-0


[Site "https://www.chess.com"]

[Event "Titled Tuesday Blitz July 4 Early 2023"]
[White "Acikel, Mert"]
[Black "Kuzmin, Roman"]
[WhiteFideId "12956465"]
[BlackFideId "44134932"]
[WhiteElo "2303"]
[BlackElo "2521"]
[Result "0-1"]
[Round "2"]
[TimeControl "180+2"]
[Date "2023.07.04"]
[WhiteClock "0:00:00"]
[BlackClock "0:00:10"]
[Board "180"]

1. e4 {[%clk 0:02:59]}  c5 {[%clk 0:02:59]} 2. Nf3 {[%clk 0:02:59]}  d6 {[%clk 0:02:59]} 3. Bb5+ {[%clk 0:02:59]}  Bd7 {[%clk 0:02:59]} 4. c4 {[%clk 0:02:57]}  Nf6 {[%clk 0:02:56]} 5. Nc3 {[%clk 0:02:43]}  g6 {[%clk 0:02:55]} 6. O-O {[%clk 0:02:43]}  Bg7 {[%clk 0:02:55]} 7. Bxd7+ {[%clk 0:02:37]}  Qxd7 {[%clk 0:02:50]} 8. d4 {[%clk 0:02:35]}  cxd4 {[%clk 0:02:51]} 9. Nxd4 {[%clk 0:02:36]}  O-O {[%clk 0:02:52]} 10. Be3 {[%clk 0:02:25]}  Nc6 {[%clk 0:02:21]} 11. Nxc6 {[%clk 0:02:22]}  bxc6 {[%clk 0:02:19]} 12. Rc1 {[%clk 0:02:21]}  Qb7 {[%clk 0:02:18]} 13. b3 {[%clk 0:02:20]}  c5 {[%clk 0:02:18]} 14. Qd3 {[%clk 0:02:20]}  Ng4 {[%clk 0:02:15]} 15. Bf4 {[%clk 0:02:16]}  Ne5 {[%clk 0:02:06]} 16. Qd2 {[%clk 0:02:15]}  Rfe8 {[%clk 0:02:02]} 17. h3 {[%clk 0:02:15]}  a5 {[%clk 0:01:59]} 18. Be3 {[%clk 0:02:07]}  Nd7 {[%clk 0:01:51]} 19. f4 {[%clk 0:01:53]}  Bxc3 {[%clk 0:01:48]} 20. Qxc3 {[%clk 0:01:52]}  Qxe4 {[%clk 0:01:49]} 21. Rce1 {[%clk 0:01:50]}  Qf5 {[%clk 0:01:43]} 22. Qd2 {[%clk 0:01:33]}  a4 {[%clk 0:01:41]} 23. g4 {[%clk 0:01:31]}  Qf6 {[%clk 0:01:41]} 24. f5 {[%clk 0:01:30]}  axb3 {[%clk 0:01:32]} 25. fxg6 {[%clk 0:01:26]}  Qxg6 {[%clk 0:01:32]} 26. axb3 {[%clk 0:01:26]}  Rab8 {[%clk 0:01:22]} 27. Qc3 {[%clk 0:01:22]}  Qg7 {[%clk 0:01:18]} 28. Qd3 {[%clk 0:01:22]}  Ne5 {[%clk 0:01:18]} 29. Qc2 {[%clk 0:01:23]}  Qg6 {[%clk 0:01:16]} 30. Qc3 {[%clk 0:01:19]}  Qd3 {[%clk 0:01:14]} 31. Qxd3 {[%clk 0:01:14]}  Nxd3 {[%clk 0:01:15]} 32. Rd1 {[%clk 0:01:14]}  Rxb3 {[%clk 0:01:14]} 33. Bh6 {[%clk 0:01:10]}  f6 {[%clk 0:01:04]} 34. Rf3 {[%clk 0:00:45]}  Nc1 {[%clk 0:01:02]} 35. Rf2 {[%clk 0:00:29]}  Nd3 {[%clk 0:00:56]} 36. Rf3 {[%clk 0:00:30]}  Nb2 {[%clk 0:00:45]} 37. Rxb3 {[%clk 0:00:25]}  Nxd1 {[%clk 0:00:45]} 38. Kf1 {[%clk 0:00:20]}  Ra8 {[%clk 0:00:43]} 39. Ke2 {[%clk 0:00:16]}  Ra1 {[%clk 0:00:43]} 40. h4 {[%clk 0:00:08]}  Kf7 {[%clk 0:00:41]} 41. h5 {[%clk 0:00:08]}  Ke6 {[%clk 0:00:24]} 42. Bf4 {[%clk 0:00:08]}  Rb1 {[%clk 0:00:17]} 43. Ra3 {[%clk 0:00:05]}  Nb2 {[%clk 0:00:13]} 44. Rb3 {[%clk 0:00:05]}  Na4 {[%clk 0:00:13]} 45. Re3+ {[%clk 0:00:04]}  Kf7 {[%clk 0:00:13]} 46. Ra3 {[%clk 0:00:03]}  Nb6 {[%clk 0:00:11]} 47. Ra7 {[%clk 0:00:02]}  Nxc4 {[%clk 0:00:10]} 48. Kd3 {[%clk 0:00:03]}  Rb4 {[%clk 0:00:10]} 49. Bc1 {[%clk 0:00:02]}  Ne5+ {[%clk 0:00:10]} 50. Ke2 {[%clk 0:00:00]}  Rxg4 {[%clk 0:00:10]} 0-1


[Site "https://www.chess.com"]

[Event "Titled Tuesday Blitz July 4 Early 2023"]
[White "Rangel, Daniel"]
[Black "Vasques, Antonio Pedro Freixial"]
[WhiteFideId "2124475"]
[BlackFideId "1908332"]
[WhiteElo "2520"]
[BlackElo "2296"]
[Result "0-1"]
[Round "2"]
[TimeControl "180+2"]
[Date "2023.07.04"]
[WhiteClock "0:00:56"]
[BlackClock "0:01:30"]
[Board "182"]

1. c4 {[%clk 0:03:00]}  b6 {[%clk 0:02:57]} 2. Nf3 {[%clk 0:02:59]}  Bb7 {[%clk 0:02:57]} 3. g3 {[%clk 0:03:00]}  Bxf3 {[%clk 0:02:57]} 4. exf3 {[%clk 0:03:01]}  c5 {[%clk 0:02:58]} 5. Bg2 {[%clk 0:03:01]}  Nc6 {[%clk 0:02:57]} 6. O-O {[%clk 0:03:01]}  g6 {[%clk 0:02:56]} 7. f4 {[%clk 0:03:01]}  Bg7 {[%clk 0:02:56]} 8. Nc3 {[%clk 0:03:00]}  Rc8 {[%clk 0:02:55]} 9. b3 {[%clk 0:02:59]}  e6 {[%clk 0:02:55]} 10. Bb2 {[%clk 0:03:00]}  Nge7 {[%clk 0:02:56]} 11. Nb5 {[%clk 0:02:57]}  Bxb2 {[%clk 0:02:42]} 12. Nd6+ {[%clk 0:02:57]}  Kf8 {[%clk 0:02:42]} 13. Nxc8 {[%clk 0:02:51]}  Qxc8 {[%clk 0:02:40]} 14. Rb1 {[%clk 0:02:51]}  Bf6 {[%clk 0:02:40]} 15. a3 {[%clk 0:02:50]}  Kg7 {[%clk 0:02:38]} 16. b4 {[%clk 0:02:49]}  cxb4 {[%clk 0:02:34]} 17. axb4 {[%clk 0:02:50]}  Nd4 {[%clk 0:02:35]} 18. d3 {[%clk 0:02:48]}  h5 {[%clk 0:02:31]} 19. Ra1 {[%clk 0:02:42]}  Qc7 {[%clk 0:02:31]} 20. Ra2 {[%clk 0:02:41]}  a5 {[%clk 0:02:27]} 21. bxa5 {[%clk 0:02:38]}  bxa5 {[%clk 0:02:28]} 22. Qa4 {[%clk 0:02:38]}  Nec6 {[%clk 0:02:28]} 23. Rb1 {[%clk 0:02:37]}  Rb8 {[%clk 0:02:21]} 24. Re1 {[%clk 0:02:25]}  h4 {[%clk 0:02:05]} 25. c5 {[%clk 0:02:11]}  Rb3 {[%clk 0:01:58]} 26. Bxc6 {[%clk 0:02:03]}  Qxc6 {[%clk 0:01:59]} 27. Qxc6 {[%clk 0:02:00]}  Nxc6 {[%clk 0:02:00]} 28. Rd1 {[%clk 0:01:55]}  Bd4 {[%clk 0:01:55]} 29. Kg2 {[%clk 0:01:50]}  Rb2 {[%clk 0:01:49]} 30. Rxb2 {[%clk 0:01:46]}  Bxb2 {[%clk 0:01:50]} 31. Rb1 {[%clk 0:01:47]}  Bd4 {[%clk 0:01:49]} 32. Rb7 {[%clk 0:01:44]}  a4 {[%clk 0:01:48]} 33. Rb6 {[%clk 0:01:27]}  Bxc5 {[%clk 0:01:45]} 34. Ra6 {[%clk 0:01:27]}  a3 {[%clk 0:01:43]} 35. gxh4 {[%clk 0:01:22]}  Kf6 {[%clk 0:01:37]} 36. Kf3 {[%clk 0:01:19]}  Nd4+ {[%clk 0:01:33]} 37. Ke4 {[%clk 0:01:18]}  d5+ {[%clk 0:01:33]} 38. Ke3 {[%clk 0:01:16]}  Nb3+ {[%clk 0:01:33]} 39. Kf3 {[%clk 0:01:16]}  Nc1 {[%clk 0:01:31]} 40. Ra5 {[%clk 0:00:56]}  a2 {[%clk 0:01:30]} 0-1


[Site "https://www.chess.com"]

[Event "Titled Tuesday Blitz July 4 Early 2023"]
[White "Jovic, Stanoje"]
[Black "Zaksaite, Salomeja"]
[WhiteFideId "905020"]
[BlackFideId "12801496"]
[WhiteElo "2511"]
[BlackElo "2286"]
[Result "1-0"]
[Round "2"]
[TimeControl "180+2"]
[Date "2023.07.04"]
[WhiteClock "0:00:12"]
[BlackClock "0:00:00"]
[Board "187"]

1. c4 {[%clk 0:02:57]}  e5 {[%clk 0:02:57]} 2. g3 {[%clk 0:02:57]}  Nc6 {[%clk 0:02:56]} 3. Bg2 {[%clk 0:02:57]}  f5 {[%clk 0:02:56]} 4. Nh3 {[%clk 0:02:56]}  Nf6 {[%clk 0:02:56]} 5. O-O {[%clk 0:02:55]}  Bc5 {[%clk 0:02:56]} 6. e3 {[%clk 0:02:52]}  a6 {[%clk 0:02:55]} 7. d4 {[%clk 0:02:51]}  exd4 {[%clk 0:02:49]} 8. exd4 {[%clk 0:02:50]}  Nxd4 {[%clk 0:02:49]} 9. Re1+ {[%clk 0:02:49]}  Ne6 {[%clk 0:02:49]} 10. Nc3 {[%clk 0:02:41]}  O-O {[%clk 0:02:48]} 11. Nd5 {[%clk 0:02:40]}  c6 {[%clk 0:02:39]} 12. Nxf6+ {[%clk 0:02:29]}  Qxf6 {[%clk 0:02:39]} 13. Rb1 {[%clk 0:02:29]}  a5 {[%clk 0:02:29]} 14. b3 {[%clk 0:02:29]}  d6 {[%clk 0:02:22]} 15. Bb2 {[%clk 0:02:28]}  Qf7 {[%clk 0:02:11]} 16. a3 {[%clk 0:02:18]}  Bd7 {[%clk 0:02:09]} 17. Qd2 {[%clk 0:02:07]}  f4 {[%clk 0:01:52]} 18. b4 {[%clk 0:02:04]}  axb4 {[%clk 0:01:48]} 19. axb4 {[%clk 0:02:04]}  Bb6 {[%clk 0:01:08]} 20. gxf4 {[%clk 0:02:01]}  Nxf4 {[%clk 0:01:04]} 21. Nxf4 {[%clk 0:01:58]}  Qxf4 {[%clk 0:01:03]} 22. Qxf4 {[%clk 0:01:56]}  Rxf4 {[%clk 0:01:04]} 23. c5 {[%clk 0:01:51]}  dxc5 {[%clk 0:01:00]} 24. Re7 {[%clk 0:01:50]}  Bf5 {[%clk 0:00:55]} 25. Rxg7+ {[%clk 0:01:46]}  Kf8 {[%clk 0:00:55]} 26. Rf1 {[%clk 0:01:28]}  Rxb4 {[%clk 0:00:36]} 27. Bf6 {[%clk 0:01:19]}  c4 {[%clk 0:00:29]} 28. Rg5 {[%clk 0:01:03]}  Bd3 {[%clk 0:00:27]} 29. Bh3 {[%clk 0:00:47]}  Kf7 {[%clk 0:00:20]} 30. Bc3 {[%clk 0:00:44]}  Rb3 {[%clk 0:00:19]} 31. Rg7+ {[%clk 0:00:43]}  Kf8 {[%clk 0:00:18]} 32. Bf6 {[%clk 0:00:43]}  Bd8 {[%clk 0:00:13]} 33. Be5 {[%clk 0:00:22]}  Bxf1 {[%clk 0:00:07]} 34. Be6 {[%clk 0:00:21]}  Bd3 {[%clk 0:00:02]} 35. Rf7+ {[%clk 0:00:13]}  Ke8 {[%clk 0:00:00]} 36. Rg7 {[%clk 0:00:12]} 1-0


[Site "https://www.chess.com"]

[Event "Titled Tuesday Blitz July 4 Early 2023"]
[White "Osinovsky, Stepan"]
[Black "Principe, Alexander"]
[WhiteFideId "4157354"]
[BlackFideId "3804542"]
[WhiteElo "2286"]
[BlackElo "2511"]
[Result "1-0"]
[Round "2"]
[TimeControl "180+2"]
[Date "2023.07.04"]
[WhiteClock "0:01:19"]
[BlackClock "0:01:03"]
[Board "188"]

1. Nf3 {[%clk 0:03:00]}  Nf6 {[%clk 0:02:59]} 2. g3 {[%clk 0:03:01]}  g6 {[%clk 0:02:59]} 3. Bg2 {[%clk 0:03:02]}  Bg7 {[%clk 0:03:00]} 4. O-O {[%clk 0:03:03]}  O-O {[%clk 0:03:01]} 5. d3 {[%clk 0:03:03]}  d6 {[%clk 0:03:02]} 6. e4 {[%clk 0:03:03]}  c6 {[%clk 0:03:02]} 7. Re1 {[%clk 0:03:03]}  Bg4 {[%clk 0:03:01]} 8. h3 {[%clk 0:03:02]}  Bxf3 {[%clk 0:03:02]} 9. Qxf3 {[%clk 0:03:03]}  Nbd7 {[%clk 0:03:03]} 10. a4 {[%clk 0:03:03]}  Qc7 {[%clk 0:03:02]} 11. a5 {[%clk 0:03:02]}  Rfe8 {[%clk 0:02:58]} 12. Nd2 {[%clk 0:02:57]}  Rad8 {[%clk 0:02:58]} 13. Nc4 {[%clk 0:02:51]}  h6 {[%clk 0:02:55]} 14. Be3 {[%clk 0:02:47]}  c5 {[%clk 0:02:51]} 15. Bd2 {[%clk 0:02:40]}  e6 {[%clk 0:02:27]} 16. e5 {[%clk 0:02:29]}  Nxe5 {[%clk 0:02:06]} 17. Nxe5 {[%clk 0:02:28]}  dxe5 {[%clk 0:02:07]} 18. Qxb7 {[%clk 0:02:28]}  Qxb7 {[%clk 0:02:03]} 19. Bxb7 {[%clk 0:02:29]}  Nd5 {[%clk 0:02:03]} 20. Re4 {[%clk 0:02:09]}  f5 {[%clk 0:02:00]} 21. Rc4 {[%clk 0:02:08]}  Re7 {[%clk 0:01:55]} 22. a6 {[%clk 0:02:04]}  Bf8 {[%clk 0:01:50]} 23. Rxc5 {[%clk 0:01:57]}  Nb6 {[%clk 0:01:22]} 24. Rc6 {[%clk 0:01:52]}  e4 {[%clk 0:01:20]} 25. Be3 {[%clk 0:01:48]}  Nd5 {[%clk 0:01:19]} 26. Bxa7 {[%clk 0:01:46]}  exd3 {[%clk 0:01:19]} 27. cxd3 {[%clk 0:01:45]}  Nb4 {[%clk 0:01:19]} 28. Bb6 {[%clk 0:01:38]}  Rde8 {[%clk 0:01:14]} 29. Rc8 {[%clk 0:01:34]}  Nd5 {[%clk 0:01:08]} 30. Rxe8 {[%clk 0:01:28]}  Rxe8 {[%clk 0:01:06]} 31. Bxd5 {[%clk 0:01:25]}  exd5 {[%clk 0:01:05]} 32. a7 {[%clk 0:01:23]}  Ra8 {[%clk 0:01:03]} 33. Ra5 {[%clk 0:01:19]} 1-0


[Site "https://www.chess.com"]

[Event "Titled Tuesday Blitz July 4 Early 2023"]
[White "Keleberda, Tymur"]
[Black "Tuleyeva-Aketayeva, Dana"]
[WhiteFideId "14174294"]
[BlackFideId "13701932"]
[WhiteElo "2500"]
[BlackElo "2252"]
[Result "1-0"]
[Round "2"]
[TimeControl "180+2"]
[Date "2023.07.04"]
[WhiteClock "0:00:52"]
[BlackClock "0:00:08"]
[Board "198"]

1. e4 {[%clk 0:02:41]}  c5 {[%clk 0:02:58]} 2. Nf3 {[%clk 0:02:38]}  Nc6 {[%clk 0:02:58]} 3. Bb5 {[%clk 0:02:38]}  g6 {[%clk 0:02:58]} 4. Bxc6 {[%clk 0:02:36]}  bxc6 {[%clk 0:02:59]} 5. d4 {[%clk 0:02:36]}  cxd4 {[%clk 0:02:55]} 6. Qxd4 {[%clk 0:02:37]}  f6 {[%clk 0:02:54]} 7. e5 {[%clk 0:02:35]}  Qb6 {[%clk 0:02:53]} 8. Be3 {[%clk 0:02:26]}  Qxd4 {[%clk 0:02:53]} 9. Bxd4 {[%clk 0:02:27]}  fxe5 {[%clk 0:02:49]} 10. Bxe5 {[%clk 0:02:23]}  Nf6 {[%clk 0:02:50]} 11. O-O {[%clk 0:02:18]}  Bg7 {[%clk 0:02:50]} 12. Re1 {[%clk 0:02:17]}  O-O {[%clk 0:02:49]} 13. Bd4 {[%clk 0:02:13]}  Re8 {[%clk 0:02:46]} 14. c4 {[%clk 0:01:57]}  d6 {[%clk 0:02:45]} 15. Nbd2 {[%clk 0:01:55]}  e5 {[%clk 0:02:45]} 16. Bc3 {[%clk 0:01:55]}  Be6 {[%clk 0:02:37]} 17. b3 {[%clk 0:01:54]}  a5 {[%clk 0:02:33]} 18. Rad1 {[%clk 0:01:47]}  a4 {[%clk 0:02:31]} 19. Ng5 {[%clk 0:01:45]}  axb3 {[%clk 0:02:30]} 20. axb3 {[%clk 0:01:46]}  Bf5 {[%clk 0:02:28]} 21. f3 {[%clk 0:01:35]}  Bc2 {[%clk 0:02:14]} 22. Rc1 {[%clk 0:01:34]}  Ra2 {[%clk 0:02:13]} 23. Ra1 {[%clk 0:01:27]}  Rea8 {[%clk 0:02:11]} 24. Rxa2 {[%clk 0:01:12]}  Rxa2 {[%clk 0:02:11]} 25. h4 {[%clk 0:01:12]}  h6 {[%clk 0:02:04]} 26. Ne6 {[%clk 0:01:10]}  Nd7 {[%clk 0:01:44]} 27. Nxg7 {[%clk 0:01:08]}  Kxg7 {[%clk 0:01:44]} 28. f4 {[%clk 0:01:05]}  Kf6 {[%clk 0:01:42]} 29. c5 {[%clk 0:01:02]}  Nxc5 {[%clk 0:01:29]} 30. fxe5+ {[%clk 0:01:02]}  Kf7 {[%clk 0:01:04]} 31. exd6 {[%clk 0:00:57]}  Bxb3 {[%clk 0:00:58]} 32. Re7+ {[%clk 0:00:54]}  Kf8 {[%clk 0:00:57]} 33. Bg7+ {[%clk 0:00:50]}  Kg8 {[%clk 0:00:56]} 34. Nxb3 {[%clk 0:00:50]}  Nxb3 {[%clk 0:00:56]} 35. d7 {[%clk 0:00:50]}  Rd2 {[%clk 0:00:41]} 36. Bxh6 {[%clk 0:00:50]}  Rd1+ {[%clk 0:00:18]} 37. Kh2 {[%clk 0:00:49]}  c5 {[%clk 0:00:15]} 38. Bg5 {[%clk 0:00:47]}  c4 {[%clk 0:00:13]} 39. Re8+ {[%clk 0:00:47]}  Kf7 {[%clk 0:00:13]} 40. d8=Q {[%clk 0:00:48]}  Rxd8 {[%clk 0:00:12]} 41. Rxd8 {[%clk 0:00:49]}  c3 {[%clk 0:00:12]} 42. Rc8 {[%clk 0:00:50]}  Nd4 {[%clk 0:00:11]} 43. Rxc3 {[%clk 0:00:49]}  Ne6 {[%clk 0:00:10]} 44. Rf3+ {[%clk 0:00:49]}  Kg7 {[%clk 0:00:10]} 45. Re3 {[%clk 0:00:49]}  Nf8 {[%clk 0:00:10]} 46. Re7+ {[%clk 0:00:49]}  Kg8 {[%clk 0:00:10]} 47. Bh6 {[%clk 0:00:49]}  g5 {[%clk 0:00:09]} 48. Bxf8 {[%clk 0:00:47]}  Kxf8 {[%clk 0:00:08]} 49. Ra7 {[%clk 0:00:47]}  gxh4 {[%clk 0:00:08]} 50. Kh3 {[%clk 0:00:48]}  Kg8 {[%clk 0:00:08]} 51. Kxh4 {[%clk 0:00:49]}  Kh8 {[%clk 0:00:08]} 52. g4 {[%clk 0:00:50]}  Kg8 {[%clk 0:00:09]} 53. Kg5 {[%clk 0:00:51]}  Kf8 {[%clk 0:00:10]} 54. Kf6 {[%clk 0:00:52]}  Ke8 {[%clk 0:00:10]} 55. g5 {[%clk 0:00:51]}  Kf8 {[%clk 0:00:10]} 56. g6 {[%clk 0:00:52]}  Ke8 {[%clk 0:00:08]} 57. g7 {[%clk 0:00:52]} 1-0


[Site "https://www.chess.com"]

[Event "Titled Tuesday Blitz July 4 Early 2023"]
[White "Putri, Regita Desyari"]
[Black "Devaev, Alexander"]
[WhiteFideId "7109083"]
[BlackFideId "4169395"]
[WhiteElo "2245"]
[BlackElo "2500"]
[Result "1/2-1/2"]
[Round "2"]
[TimeControl "180+2"]
[Date "2023.07.04"]
[WhiteClock "0:00:10"]
[BlackClock "0:00:14"]
[Board "199"]

1. d4 {[%clk 0:02:58]}  Nf6 {[%clk 0:02:58]} 2. c4 {[%clk 0:02:57]}  e6 {[%clk 0:02:57]} 3. Nf3 {[%clk 0:02:58]}  c5 {[%clk 0:02:56]} 4. d5 {[%clk 0:02:51]}  d6 {[%clk 0:02:57]} 5. Nc3 {[%clk 0:02:45]}  e5 {[%clk 0:02:57]} 6. e4 {[%clk 0:02:43]}  Be7 {[%clk 0:02:58]} 7. Be2 {[%clk 0:02:43]}  Nbd7 {[%clk 0:02:58]} 8. O-O {[%clk 0:02:43]}  Nf8 {[%clk 0:02:58]} 9. a3 {[%clk 0:02:36]}  Ng6 {[%clk 0:02:56]} 10. h3 {[%clk 0:02:25]}  O-O {[%clk 0:02:54]} 11. b4 {[%clk 0:02:24]}  b6 {[%clk 0:02:53]} 12. Be3 {[%clk 0:02:22]}  Nf4 {[%clk 0:02:52]} 13. Bxf4 {[%clk 0:02:16]}  exf4 {[%clk 0:02:53]} 14. Rb1 {[%clk 0:02:11]}  Nd7 {[%clk 0:02:48]} 15. Qd2 {[%clk 0:02:03]}  Bf6 {[%clk 0:02:47]} 16. Nb5 {[%clk 0:02:02]}  Ne5 {[%clk 0:02:35]} 17. Qxf4 {[%clk 0:01:22]}  a6 {[%clk 0:02:34]} 18. Nc3 {[%clk 0:01:21]}  cxb4 {[%clk 0:02:26]} 19. axb4 {[%clk 0:01:20]}  Nxc4 {[%clk 0:02:21]} 20. Bxc4 {[%clk 0:01:13]}  Bxc3 {[%clk 0:02:21]} 21. Qe3 {[%clk 0:00:59]}  Bf6 {[%clk 0:02:17]} 22. Nd4 {[%clk 0:00:55]}  Bxd4 {[%clk 0:01:38]} 23. Qxd4 {[%clk 0:00:56]}  Bd7 {[%clk 0:01:38]} 24. f4 {[%clk 0:00:54]}  Qh4 {[%clk 0:01:32]} 25. Qxb6 {[%clk 0:00:34]}  Bxh3 {[%clk 0:01:32]} 26. Qf2 {[%clk 0:00:29]}  Qxf2+ {[%clk 0:01:17]} 27. Rxf2 {[%clk 0:00:30]}  Bd7 {[%clk 0:01:17]} 28. Ra2 {[%clk 0:00:20]}  Rfb8 {[%clk 0:01:18]} 29. Rxa6 {[%clk 0:00:18]}  Kf8 {[%clk 0:01:12]} 30. Kf2 {[%clk 0:00:15]}  Ke7 {[%clk 0:01:10]} 31. Ke3 {[%clk 0:00:15]}  Rc8 {[%clk 0:01:07]} 32. Kd4 {[%clk 0:00:09]}  Rab8 {[%clk 0:01:07]} 33. b5 {[%clk 0:00:07]}  Rc5 {[%clk 0:01:04]} 34. b6 {[%clk 0:00:07]}  Rbc8 {[%clk 0:01:00]} 35. Rb4 {[%clk 0:00:07]}  Rb8 {[%clk 0:00:55]} 36. Ra7 {[%clk 0:00:07]}  Kd8 {[%clk 0:00:52]} 37. e5 {[%clk 0:00:06]}  Rcc8 {[%clk 0:00:20]} 38. exd6 {[%clk 0:00:06]}  Ke8 {[%clk 0:00:15]} 39. b7 {[%clk 0:00:06]}  Rd8 {[%clk 0:00:16]} 40. Ba6 {[%clk 0:00:06]}  h5 {[%clk 0:00:12]} 41. Rb2 {[%clk 0:00:07]}  f6 {[%clk 0:00:12]} 42. Re2+ {[%clk 0:00:07]}  Kf8 {[%clk 0:00:12]} 43. Re7 {[%clk 0:00:08]}  g5 {[%clk 0:00:12]} 44. Rh7 {[%clk 0:00:07]}  Kg8 {[%clk 0:00:11]} 45. Bd3 {[%clk 0:00:08]}  h4 {[%clk 0:00:11]} 46. Re7 {[%clk 0:00:07]}  Kf8 {[%clk 0:00:10]} 47. Bg6 {[%clk 0:00:07]}  g4 {[%clk 0:00:08]} 48. Rf7+ {[%clk 0:00:07]}  Kg8 {[%clk 0:00:08]} 49. Rh7 {[%clk 0:00:07]}  h3 {[%clk 0:00:07]} 50. gxh3 {[%clk 0:00:08]}  gxh3 {[%clk 0:00:08]} 51. f5 {[%clk 0:00:08]}  Be8 {[%clk 0:00:08]} 52. Rxh3 {[%clk 0:00:08]}  Bxg6 {[%clk 0:00:08]} 53. fxg6 {[%clk 0:00:09]}  Rxd6 {[%clk 0:00:08]} 54. Rb3 {[%clk 0:00:08]}  Rdd8 {[%clk 0:00:08]} 55. Kc5 {[%clk 0:00:08]}  Kg7 {[%clk 0:00:08]} 56. d6 {[%clk 0:00:08]}  Kxg6 {[%clk 0:00:09]} 57. Kc6 {[%clk 0:00:08]}  Kf7 {[%clk 0:00:09]} 58. Kc7 {[%clk 0:00:08]}  Ke6 {[%clk 0:00:09]} 59. Re3+ {[%clk 0:00:08]}  Kd5 {[%clk 0:00:09]} 60. d7 {[%clk 0:00:07]}  Kc5 {[%clk 0:00:09]} 61. Ra8 {[%clk 0:00:05]}  Rxa8 {[%clk 0:00:08]} 62. bxa8=Q {[%clk 0:00:06]}  Rxa8 {[%clk 0:00:09]} 63. Re8 {[%clk 0:00:07]}  Ra7+ {[%clk 0:00:08]} 64. Kc8 {[%clk 0:00:07]}  f5 {[%clk 0:00:08]} 65. d8=Q {[%clk 0:00:06]}  Ra8+ {[%clk 0:00:09]} 66. Kd7 {[%clk 0:00:06]}  Rxd8+ {[%clk 0:00:10]} 67. Rxd8 {[%clk 0:00:06]}  Kd4 {[%clk 0:00:10]} 68. Ke6+ {[%clk 0:00:06]}  Ke4 {[%clk 0:00:10]} 69. Ra8 {[%clk 0:00:05]}  f4 {[%clk 0:00:11]} 70. Ra4+ {[%clk 0:00:06]}  Ke3 {[%clk 0:00:11]} 71. Kf5 {[%clk 0:00:06]}  f3 {[%clk 0:00:12]} 72. Kg4 {[%clk 0:00:07]}  f2 {[%clk 0:00:13]} 73. Ra3+ {[%clk 0:00:06]}  Ke2 {[%clk 0:00:13]} 74. Ra2+ {[%clk 0:00:07]}  Ke1 {[%clk 0:00:14]} 75. Ra1+ {[%clk 0:00:08]}  Ke2 {[%clk 0:00:14]} 76. Ra2+ {[%clk 0:00:09]}  Ke1 {[%clk 0:00:14]} 77. Ra1+ {[%clk 0:00:09]}  Ke2 {[%clk 0:00:14]} 78. Ra2+ {[%clk 0:00:10]} 1/2-1/2


[Site "https://www.chess.com"]